fUST/lending_fUST_20250413
["ID","MTS","AMOUNT","RATE_DAILY","PERIOD"]
[357896094,1744529440591,-575.920441,0.000211,2]
[357896095,1744529440601,-438.617806,0.000211,2]
[357896096,1744529440611,-438.617806,0.000211,2]
[357896097,1744529440621,-438.617806,0.000211,2]
[357896098,1744529440632,-438.617806,0.000211,2]
[357896099,1744529440642,-438.617806,0.000211,2]
[357896100,1744529440652,-438.617806,0.000211,2]
[357896101,1744529440661,-438.617806,0.000211,2]
[357896102,1744529440671,-438.617806,0.000211,2]
[357896103,1744529440681,-438.617806,0.000211,2]
[357896104,1744529440691,-438.617806,0.000211,2]
[357896105,1744529440700,-438.617806,0.000211,2]
[357896106,1744529440710,-438.617806,0.000211,2]
[357896107,1744529440720,-438.617806,0.000211,2]
[357896108,1744529440730,-438.617806,0.000211,2]
[357896109,1744529440739,-438.617806,0.000211,2]
[357896110,1744529440749,-438.617806,0.000211,2]
[357896111,1744529440758,-438.617806,0.000211,2]
[357896112,1744529440768,-438.617806,0.000211,2]
[357896113,1744529440778,-438.617806,0.000211,2]
[357896114,1744529440788,-438.617797,0.000211,2]
[357896115,1744529440797,-219.148074,0.000211,2]
[357896116,1744529440807,-219.148074,0.000211,2]
[357896117,1744529440817,-219.148074,0.000211,2]
[357896118,1744529440827,-219.148074,0.000211,2]
[357896119,1744529440837,-219.148074,0.000211,2]
[357896120,1744529440846,-219.148074,0.000211,2]
[357896121,1744529440856,-219.148074,0.000211,2]
[357896122,1744529440866,-219.148074,0.000211,2]
[357896123,1744529440876,-219.148074,0.000211,2]
[357896124,1744529440886,-219.148074,0.000211,2]
[357896125,1744529440896,-219.148074,0.000211,2]
[357896126,1744529440905,-219.148074,0.000211,2]
[357896127,1744529440915,-219.148074,0.000211,2]
[357896128,1744529440924,-219.148074,0.000211,2]
[357896129,1744529440934,-219.148074,0.000211,2]
[357896130,1744529440943,-219.148074,0.000211,2]
[357896131,1744529440952,-219.148074,0.000211,2]
[357896132,1744529440962,-219.148074,0.000211,2]
[357896133,1744529440972,-219.148074,0.000211,2]
[357896134,1744529440982,-219.148083,0.000211,2]
[357896135,1744529440991,-151.0,0.000211,2]
[357896136,1744529441001,-151.0,0.000211,2]
[357896137,1744529441010,-151.0,0.000211,2]
[357896138,1744529441020,-151.0,0.000211,2]
[357896139,1744529441030,-151.0,0.000211,2]
[357896140,1744529441039,-151.0,0.000211,2]
[357896141,1744529441049,-151.0,0.000211,2]
[357896142,1744529441058,-151.0,0.000211,2]
[357896143,1744529441067,-151.0,0.000211,2]
[357896144,1744529441077,-151.0,0.000211,2]
[357896145,1744529441086,-151.0,0.000211,2]
[357896146,1744529441096,-264.271441,0.000211,2]
[357896147,1744529441106,-202.125804,0.000211,2]
[357896148,1744529441115,-921.0,0.000211,2]
[357896149,1744529441125,-151.0,0.000211,2]
[357896150,1744529441135,-151.0,0.000211,2]
[357896151,1744529441144,-151.0,0.000211,2]
[357896152,1744529441154,-151.0,0.000211,2]
[357896153,1744529441163,-151.0,0.000211,2]
[357896154,1744529441173,-151.0,0.000211,2]
[357896155,1744529441183,-151.0,0.000211,2]
[357896156,1744529441192,-151.0,0.000211,2]
[357896157,1744529441202,-227.034093,0.000211,2]
[357896158,1744529441211,-227.034093,0.000211,2]
[357896159,1744529441221,-227.034093,0.000211,2]
[357896160,1744529441230,-227.034093,0.000211,2]
[357896161,1744529441240,-227.034093,0.000211,2]
[357896162,1744529441250,-227.034093,0.000211,2]
[357896163,1744529441259,-227.034093,0.000211,2]
[357896164,1744529441269,-227.034093,0.000211,2]
[357896165,1744529441280,-227.034093,0.000211,2]
[357896166,1744529441289,-227.034093,0.000211,2]
[357896167,1744529441299,-227.034093,0.000211,2]
[357896168,1744529441309,-227.034093,0.000211,2]
[357896169,1744529441319,-227.034093,0.000211,2]
[357896170,1744529441328,-227.034093,0.000211,2]
[357896171,1744529441343,-227.034093,0.000211,2]
[357896172,1744529441353,-227.034093,0.000211,2]
[357896173,1744529441362,-227.034093,0.000211,2]
[357896174,1744529441372,-227.034088,0.000211,2]
[357896175,1744529441382,-151.0,0.000211,2]
[357896176,1744529441395,-151.0,0.000211,2]
[357896177,1744529441404,-151.0,0.000211,2]
[357896178,1744529441414,-151.0,0.000211,2]
[357896179,1744529441424,-180.672176,0.000211,2]
[357896180,1744529441434,-195.25105133,0.000211,2]
[357896181,1744529441443,-793.560832,0.000211,2]
[357896182,1744529441453,-793.560832,0.000211,2]
[357896183,1744529441462,-793.560832,0.000211,2]
[357896184,1744529441473,-793.560832,0.000211,2]
[357896185,1744529441487,-793.560832,0.000211,2]
[357896186,1744529441498,-793.560832,0.000211,2]
[357896187,1744529441508,-793.560832,0.000211,2]
[357896188,1744529441518,-793.560832,0.000211,2]
[357896189,1744529441528,-793.560832,0.000211,2]
[357896190,1744529441539,-793.560832,0.000211,2]
[357896191,1744529441549,-793.560832,0.000211,2]
[357896192,1744529441559,-793.560832,0.000211,2]
[357896193,1744529441569,-793.560832,0.000211,2]
[357896194,1744529441579,-793.560835,0.000211,2]
[357896195,1744529441589,-151.0,0.000211,2]
[357896196,1744529441599,-151.0,0.000211,2]
[357896197,1744529441610,-151.0,0.000211,2]
[357896198,1744529441620,-151.0,0.000211,2]
[357896199,1744529441630,-151.0,0.000211,2]
[357896200,1744529441640,-151.0,0.000211,2]
[357896201,1744529441650,-151.0,0.000211,2]
[357896202,1744529441660,-152.18160442,0.000211,2]
[357896203,1744529441670,-151.0,0.000211,2]
[357896204,1744529441680,-151.0,0.000211,2]
[357896205,1744529441689,-287.24141937,0.000211,2]
[357896206,1744529441699,-151.0,0.000211,2]
[357896207,1744529441709,-151.0,0.000211,2]
[357896208,1744529441719,-151.0,0.000211,2]
[357896209,1744529441729,-151.0,0.000211,2]
[357896210,1744529441739,-151.0,0.000211,2]
[357896211,1744529441749,-151.0,0.000211,2]
[357896212,1744529441760,-151.0,0.000211,2]
[357896213,1744529441770,-151.0,0.000211,2]
[357896214,1744529441780,-151.0,0.000211,2]
[357896215,1744529441789,-151.0,0.000211,2]
[357896216,1744529441799,-151.0,0.000211,2]
[357896217,1744529441809,-151.0,0.000211,2]
[357896218,1744529441819,-151.0,0.000211,2]
[357896219,1744529441828,-151.0,0.000211,2]
[357896220,1744529441838,-151.0,0.000211,2]
[357896221,1744529441848,-151.0,0.000211,2]
[357896222,1744529441857,-151.0,0.000211,2]
[357896223,1744529441867,-151.0,0.000211,2]
[357896224,1744529441877,-151.0,0.000211,2]
[357896225,1744529441887,-151.0,0.000211,2]
[357896226,1744529441897,-151.0,0.000211,2]
[357896227,1744529441907,-151.0,0.000211,2]
[357896228,1744529441917,-151.0,0.000211,2]
[357896229,1744529441927,-151.0,0.000211,2]
[357896230,1744529441936,-151.0,0.000211,2]
[357896231,1744529441946,-201.070778,0.000211,2]
[357896232,1744529441955,-151.0,0.000211,2]
[357896233,1744529441965,-151.0,0.000211,2]
[357896234,1744529441975,-288.00086,0.000211,2]
[357896235,1744529441985,-151.0,0.000211,2]
[357896236,1744529441995,-152.96945064,0.000211,2]
[357896237,1744529442004,-151.27432757,0.000211,2]
[357896238,1744529442014,-151.0,0.000211,2]
[357896239,1744529442024,-151.0,0.000211,2]
[357896240,1744529442034,-151.0,0.000211,2]
[357896241,1744529442043,-302.160499,0.000211,2]
[357896242,1744529442053,-302.160499,0.000211,2]
[357896243,1744529442063,-302.160499,0.000211,2]
[357896244,1744529442072,-151.36446135,0.000211,2]
[357896245,1744529442082,-302.160499,0.000211,2]
[357896246,1744529442091,-302.160499,0.000211,2]
[357896247,1744529442101,-302.160499,0.000211,2]
[357896248,1744529442111,-302.160499,0.000211,2]
[357896249,1744529442121,-151.0,0.000211,2]
[357896250,1744529442131,-302.160499,0.000211,2]
[357896251,1744529442141,-252.185497,0.000211,2]
[357896252,1744529442151,-151.13767258,0.000211,2]
[357896253,1744529442161,-302.160499,0.000211,2]
[357896254,1744529442171,-302.160499,0.000211,2]
[357896255,1744529442182,-167.15599018,0.000211,2]
[357896256,1744529442192,-302.160499,0.000211,2]
[357896257,1744529442201,-302.160499,0.000211,2]
[357896258,1744529442211,-302.160499,0.000211,2]
[357896259,1744529442221,-302.160499,0.000211,2]
[357896260,1744529442231,-151.0,0.000211,2]
[357896261,1744529442241,-302.160499,0.000211,2]
[357896262,1744529442250,-302.160493,0.000211,2]
[357896263,1744529442260,-202.48225096,0.000211,2]
[357896264,1744529442269,-151.4276287,0.000211,2]
[357896265,1744529442279,-206.02558868,0.000211,2]
[357896266,1744529442288,-166.87602649,0.000211,2]
[357896267,1744529442299,-151.08443981,0.000211,2]
[357896268,1744529442309,-151.0,0.000211,2]
[357896269,1744529442319,-151.0,0.000211,2]
[357896270,1744529442329,-151.0,0.000211,2]
[357896271,1744529442338,-196.785425,0.000211,2]
[357896272,1744529442348,-553.566948,0.000211,2]
[357896273,1744529442358,-553.566948,0.000211,2]
[357896274,1744529442367,-553.566948,0.000211,2]
[357896275,1744529442377,-553.566948,0.000211,2]
[357896276,1744529442387,-553.566948,0.000211,2]
[357896277,1744529442400,-553.566948,0.000211,2]
[357896278,1744529442410,-553.566948,0.000211,2]
[357896279,1744529442419,-553.566948,0.000211,2]
[357896280,1744529442429,-553.566948,0.000211,2]
[357896281,1744529442439,-553.566948,0.000211,2]
[357896282,1744529442450,-553.566948,0.000211,2]
[357896283,1744529442462,-553.566948,0.000211,2]
[357896284,1744529442473,-553.566948,0.000211,2]
[357896285,1744529442483,-553.56694324,0.000211,2]
[357896286,1744529442494,-151.0,0.000211,2]
[357896287,1744529442504,-151.0,0.000211,2]
[357896288,1744529442514,-151.0,0.000211,2]
[357896289,1744529442523,-151.0,0.000211,2]
[357896290,1744529442533,-256.998288,0.000211,2]
[357896291,1744529442543,-171.357374,0.000211,2]
[357896292,1744529442553,-171.357374,0.000211,2]
[357896293,1744529442564,-171.357374,0.000211,2]
[357896294,1744529442574,-171.357374,0.000211,2]
[357896295,1744529442584,-171.357374,0.000211,2]
[357896296,1744529442594,-171.357374,0.000211,2]
[357896297,1744529442604,-171.357374,0.000211,2]
[357896298,1744529442614,-171.357374,0.000211,2]
[357896299,1744529442624,-171.357374,0.000211,2]
[357896300,1744529442634,-171.357368,0.000211,2]
[357896301,1744529442645,-646.424254,0.000211,2]
[357896302,1744529442654,-646.424254,0.000211,2]
[357896303,1744529442665,-646.424254,0.000211,2]
[357896304,1744529442675,-646.424254,0.000211,2]
[357896305,1744529442685,-646.424254,0.000211,2]
[357896306,1744529442695,-646.424254,0.000211,2]
[357896307,1744529442705,-646.424254,0.000211,2]
[357896308,1744529442714,-646.424254,0.000211,2]
[357896309,1744529442724,-646.424254,0.000211,2]
[357896310,1744529442734,-646.4242623,0.000211,2]
[357896311,1744529442744,-1357.687911,0.000211,2]
[357896312,1744529442754,-1357.687911,0.000211,2]
[357896313,1744529442764,-1357.687911,0.000211,2]
[357896314,1744529442774,-1357.687911,0.000211,2]
[357896315,1744529442785,-1357.687911,0.000211,2]
[357896316,1744529442795,-151.0,0.000211,2]
[357896317,1744529442805,-1357.687911,0.000211,2]
[357896318,1744529442815,-151.0,0.000211,2]
[357896319,1744529442825,-1357.687911,0.000211,2]
[357896320,1744529442835,-1357.687911,0.000211,2]
[357896321,1744529442846,-151.0,0.000211,2]
[357896322,1744529442855,-1357.687911,0.000211,2]
[357896323,1744529442865,-151.0,0.000211,2]
[357896324,1744529442875,-1357.687911,0.000211,2]
[357896325,1744529442884,-151.0,0.000211,2]
[357896326,1744529442895,-156.364613,0.000211,2]
[357896327,1744529442905,-156.364613,0.000211,2]
[357896328,1744529442915,-156.364613,0.000211,2]
[357896329,1744529442925,-156.364617,0.000211,2]
[357896330,1744529442934,-209.633638,0.000211,2]
[357896331,1744529442944,-209.633638,0.000211,2]
[357896332,1744529442954,-209.633638,0.000211,2]
[357896333,1744529442963,-209.633628,0.000211,2]
[357896334,1744529442974,-226.633617,0.000211,2]
[357896335,1744529442984,-500.0,0.00021154,2]
[357896336,1744529442994,-205.95564037,0.00021154,2]
[357896337,1744529443004,-151.0,0.00021154,2]
[357896338,1744529443014,-151.0,0.00021154,2]
[357896339,1744529443024,-151.0,0.00021154,2]
[357896340,1744529443034,-151.0,0.00021155,2]
[357896341,1744529443044,-151.0,0.00021155,2]
[357896342,1744529443053,-921.0,0.00021155,2]
[357896343,1744529443063,-151.0,0.00021155,2]
[357896344,1744529443072,-152.26790199,0.00021155,2]
[357896345,1744529443082,-151.0,0.00021155,2]
[357896346,1744529443092,-151.0,0.00021155,2]
[357896347,1744529443102,-151.0,0.00021155,2]
[357896348,1744529443112,-151.0,0.00021155,2]
[357896349,1744529443121,-151.00916742,0.00021155,2]
[357896350,1744529443132,-4118.37421818,0.00021155,2]
[357896351,1744529443142,-202.106988,0.00021155,2]
[357896352,1744529443152,-151.0,0.00021155,2]
[357896353,1744529443162,-575.920441,0.00021155,2]
[357896354,1744529443172,-575.920441,0.00021155,2]
[357896355,1744529443182,-575.920444,0.00021155,2]
[357896356,1744529443191,-151.0,0.00021156,2]
[357896357,1744529443202,-151.0,0.00021156,2]
[357896358,1744529443212,-278.413387,0.00021156,2]
[357896359,1744529443222,-150.081,0.00021156,2]
[357896360,1744529443413,-500.0,0.00021209,2]
[357896361,1744529443445,-252.20425759,0.00021209,2]
[357896362,1744529443455,-151.0,0.00021209,2]
[357896363,1744529443465,-151.0,0.00021209,2]
[357896364,1744529443475,-151.0,0.0002121,2]
[357896365,1744529443485,-198.45607806,0.0002121,2]
[357896366,1744529443494,-921.0,0.0002121,2]
[357896367,1744529443504,-151.0,0.0002121,2]
[357896368,1744529443513,-198.30028365,0.0002121,2]
[357896369,1744529443522,-151.0,0.0002121,2]
[357896370,1744529443531,-271.29534057,0.0002121,2]
[357896371,1744529443541,-198.25105115,0.0002121,2]
[357896372,1744529443550,-283.22984685,0.00021212,2]
[357896373,1744529443560,-500.0,0.00021263,2]
[357896374,1744529443570,-204.72513784,0.00021263,2]
[357896375,1744529443579,-151.0,0.00021263,2]
[357896376,1744529443589,-246.69069401,0.00021264,2]
[357896377,1744529443598,-921.0,0.00021264,2]
[357896378,1744529443608,-200.05739167,0.00021264,2]
[357896379,1744529443617,-298.91052572,0.00021264,2]
[357896380,1744529443627,-1027.15210384,0.00021269,2]
[357896381,1744529443637,-500.0,0.00021318,2]
[357896382,1744529443647,-220.84407212,0.00021318,2]
[357896383,1744529443656,-921.0,0.00021319,2]
[357896384,1744529443665,-500.0,0.00021373,2]
[357896385,1744529443674,-921.0,0.00021374,2]
[357896386,1744529443684,-151.0,0.00021424,2]
[357896387,1744529443693,-609.84909323,0.00021428,2]
[357896388,1744529443703,-921.0,0.00021429,2]
[357896389,1744529443712,-921.0,0.00021484,2]
[357896390,1744529443721,-921.0,0.00021538,2]
[357896391,1744529443730,-1027.15210384,0.00021543,2]
[357896392,1744529443740,-921.0,0.00021593,2]
[357896393,1744529443749,-151.0,0.00021596,2]
[357896394,1744529443758,-151.0,0.00021596,2]
[357896395,1744529443767,-151.0,0.00021596,2]
[357896396,1744529443777,-366.16794455,0.00021597,2]
[357896397,1744529443787,-358.0,0.00021597,2]
[357896398,1744529443796,-151.0,0.00021597,2]
[357896399,1744529443805,-282.44256403,0.00021598,2]
[357896400,1744529443815,-921.0,0.00021648,2]
[357896401,1744529443824,-1009.359594,0.00021696,2]
[357896402,1744529443834,-181208.19725004,0.00021697,2]
[357896403,1744529443843,-420.0,0.00021699,2]
[357896404,1744529443853,-151.0,0.000217,4]
[357896405,1744529443862,-921.0,0.00021703,2]
[357896406,1744529443872,-921.0,0.00021758,2]
[357896407,1744529443882,-151.0,0.000218,3]
[357896408,1744529443891,-151.0,0.000218,4]
[357896409,1744529443901,-921.0,0.00021812,2]
[357896410,1744529443911,-1027.15210384,0.00021817,2]
[357896411,1744529443920,-921.0,0.00021867,2]
[357896412,1744529443930,-322666.703675,0.000219,2]
[357896413,1744529443940,-613.78261728,0.000219,2]
[357896414,1744529443950,-100271.5853395,0.000219,2]
[357896415,1744529443960,-7499.62360537,0.000219,2]
[357896416,1744529443969,-942792.65388488,0.00021916,2]
[357896417,1744529443979,-156.96,0.00021917,2]
[357896418,1744529443988,-1500.0,0.00021917,2]
[357896419,1744529443998,-1500.0,0.00021917,2]
[357896420,1744529444007,-1500.0,0.00021917,2]
[357896421,1744529444017,-893.76029303,0.00021917,2]
[357896422,1744529444026,-500.0,0.00021917,2]
[357896423,1744529444035,-215.64694871,0.00021917,2]
[357896424,1744529444044,-500.0,0.00021917,2]
[357896425,1744529444054,-500.0,0.00021917,2]
[357896426,1744529444064,-500.0,0.00021917,2]
[357896427,1744529444073,-500.0,0.00021917,2]
[357896428,1744529444083,-597.55138724,0.00021917,2]
[357896429,1744529444092,-500.0,0.00021917,2]
[357896430,1744529444102,-501.3259305,0.00021917,2]
[357896431,1744529444111,-500.0,0.00021917,2]
[357896432,1744529444121,-500.0,0.00021917,2]
[357896433,1744529444130,-500.0,0.00021917,2]
[357896434,1744529444140,-500.0,0.00021917,2]
[357896435,1744529444150,-500.0,0.00021917,2]
[357896436,1744529444159,-500.0,0.00021917,2]
[357896437,1744529444168,-500.0,0.00021917,2]
[357896438,1744529444178,-500.0,0.00021917,2]
[357896439,1744529444187,-362.8760914,0.00021917,2]
[357896440,1744529444627,-137.1239086,0.00021917,2]
[357896441,1744529444638,-500.0,0.00021917,2]
[357896442,1744529444647,-500.0,0.00021917,2]
[357896443,1744529444657,-500.0,0.00021917,2]
[357896444,1744529444666,-500.0,0.00021917,2]
[357896445,1744529444675,-500.0,0.00021917,2]
[357896446,1744529444685,-500.0,0.00021917,2]
[357896447,1744529444694,-500.0,0.00021917,2]
[357896448,1744529444704,-500.0,0.00021917,2]
[357896449,1744529444713,-500.0,0.00021917,2]
[357896450,1744529444723,-500.0,0.00021917,2]
[357896451,1744529444732,-500.0,0.00021917,2]
[357896452,1744529444741,-500.0,0.00021917,2]
[357896453,1744529444750,-500.0,0.00021917,2]
[357896454,1744529444759,-539.69952382,0.00021917,2]
[357896455,1744529444768,-500.0,0.00021917,2]
[357896456,1744529444777,-500.0,0.00021917,2]
[357896457,1744529444786,-500.0,0.00021917,2]
[357896458,1744529444795,-500.0,0.00021917,2]
[357896459,1744529444804,-500.0,0.00021917,2]
[357896460,1744529444814,-500.0,0.00021917,2]
[357896461,1744529444823,-500.0,0.00021917,2]
[357896462,1744529444832,-500.0,0.00021917,2]
[357896463,1744529444842,-500.0,0.00021917,2]
[357896464,1744529444852,-629.27702651,0.00021917,2]
[357896465,1744529444862,-500.0,0.00021917,2]
[357896466,1744529444872,-500.0,0.00021917,2]
[357896467,1744529444882,-500.0,0.00021917,2]
[357896468,1744529444892,-500.0,0.00021917,2]
[357896469,1744529444901,-500.0,0.00021917,2]
[357896470,1744529444911,-500.0,0.00021917,2]
[357896471,1744529444921,-500.0,0.00021917,2]
[357896472,1744529444931,-500.0,0.00021917,2]
[357896473,1744529444941,-500.0,0.00021917,2]
[357896474,1744529444951,-548.24964931,0.00021917,2]
[357896475,1744529444960,-500.0,0.00021917,2]
[357896476,1744529444970,-501.69962649,0.00021917,2]
[357896477,1744529444980,-500.0,0.00021917,2]
[357896478,1744529444989,-500.0,0.00021917,2]
[357896479,1744529444998,-500.0,0.00021917,2]
[357896481,1744529445008,-500.0,0.00021917,2]
[357896483,1744529445017,-500.0,0.00021917,2]
[357896485,1744529445026,-500.0,0.00021917,2]
[357896486,1744529445035,-500.0,0.00021917,2]
[357896487,1744529445044,-500.0,0.00021917,2]
[357896488,1744529445054,-500.0,0.00021917,2]
[357896489,1744529445063,-500.0,0.00021917,2]
[357896490,1744529445072,-533.12280947,0.00021917,2]
[357896491,1744529445081,-500.0,0.00021917,2]
[357896492,1744529445091,-500.0,0.00021917,2]
[357896493,1744529445100,-500.0,0.00021917,2]
[357896494,1744529445109,-500.0,0.00021917,2]
[357896495,1744529445119,-627.86072017,0.00021917,2]
[357896496,1744529445128,-500.0,0.00021917,2]
[357896497,1744529445137,-500.0,0.00021917,2]
[357896498,1744529445147,-500.0,0.00021917,2]
[357896499,1744529445156,-500.0,0.00021917,2]
[357896500,1744529445166,-544.03386395,0.00021917,2]
[357896501,1744529445176,-500.0,0.00021917,2]
[357896502,1744529445185,-500.0,0.00021917,2]
[357896503,1744529445194,-500.0,0.00021917,2]
[357896504,1744529445204,-331.47857603,0.00021917,2]
[357896505,1744529445213,-500.0,0.00021917,2]
[357896506,1744529445224,-500.0,0.00021917,2]
[357896507,1744529445233,-564.64354842,0.00021917,2]
[357896508,1744529445243,-500.0,0.00021917,2]
[357896509,1744529445252,-500.0,0.00021917,2]
[357896510,1744529445262,-500.0,0.00021917,2]
[357896511,1744529445271,-500.0,0.00021917,2]
[357896512,1744529445281,-500.0,0.00021917,2]
[357896513,1744529445290,-500.0,0.00021917,2]
[357896514,1744529445299,-512.13027778,0.00021917,2]
[357896515,1744529445308,-500.0,0.00021917,2]
[357896516,1744529445318,-500.0,0.00021917,2]
[357896517,1744529445327,-500.0,0.00021917,2]
[357896518,1744529445336,-500.0,0.00021917,2]
[357896519,1744529445345,-500.0,0.00021917,2]
[357896520,1744529445355,-500.0,0.00021917,2]
[357896521,1744529445364,-500.0,0.00021917,2]
[357896522,1744529445374,-500.0,0.00021917,2]
[357896523,1744529445384,-502.73462613,0.00021917,2]
[357896524,1744529445397,-500.0,0.00021917,2]
[357896525,1744529445406,-500.0,0.00021917,2]
[357896526,1744529445416,-500.0,0.00021917,2]
[357896527,1744529445426,-500.0,0.00021917,2]
[357896528,1744529445437,-500.0,0.00021917,2]
[357896529,1744529445447,-250.00672617,0.00021917,2]
[357896530,1744529445457,-500.0,0.00021917,2]
[357896531,1744529445466,-500.0,0.00021917,2]
[357896532,1744529445477,-500.0,0.00021917,2]
[357896533,1744529445488,-500.0,0.00021917,2]
[357896534,1744529445498,-500.0,0.00021917,2]
[357896535,1744529445508,-500.0,0.00021917,2]
[357896536,1744529445518,-500.0,0.00021917,2]
[357896537,1744529445527,-500.0,0.00021917,2]
[357896538,1744529445537,-500.0,0.00021917,2]
[357896539,1744529445547,-500.0,0.00021917,2]
[357896540,1744529445556,-500.0,0.00021917,2]
[357896541,1744529445566,-570.45268,0.00021917,2]
[357896542,1744529445576,-500.0,0.00021917,2]
[357896543,1744529445585,-500.0,0.00021917,2]
[357896544,1744529445595,-500.0,0.00021917,2]
[357896545,1744529445605,-500.0,0.00021917,2]
[357896546,1744529445614,-500.0,0.00021917,2]
[357896548,1744529445817,-348.8145162,0.00021917,2]
[357896549,1744529445827,-496.1416958,0.00021917,2]
[357896551,1744529473642,-200.0,0.00019926,2]
[357896553,1744529485527,-411.89637248,0.00019926,2]
[357896555,1744529531221,-88.10362752,0.00019926,2]
[357896556,1744529531251,-161.89637248,0.00019926,2]
[357896561,1744529676202,-237.12464352,0.00019996,2]
[357896565,1744529836252,-176.5,0.00019996,2]
[357896566,1744530084775,-157.90832517,0.00019947,2]
[357896567,1744530158541,-250.0,0.00019932,2]
[357896568,1744530215340,-250.0,0.00019896,2]
[357896570,1744530352925,-250.0,0.00019815,2]
[357896571,1744530369289,-137.47631,0.00019932,2]
[357896572,1744530369315,-14.199618,0.00019947,2]
[357896573,1744530370406,-327.35290703,0.00019947,2]
[357896574,1744530425093,-300.0,0.00019996,2]
[357896576,1744530483770,-25.84304778,0.00019996,2]
[357896577,1744530483814,-228.22191759,0.00019999,2]
[357896578,1744530604989,-157.0039481,0.00019999,2]
[357896593,1744530632399,-142.9960519,0.00019999,2]
[357896594,1744530632409,-111.04193389,0.00019999,2]
[357896595,1744530632573,-188.95806611,0.00019999,2]
[357896596,1744530632583,-2938.16525192,0.0002,2]
[357896597,1744530633432,-151.51905394,0.0002,2]
[357896598,1744530636969,-186.53670969,0.0002,2]
[357896634,1744530642985,-0.00237077,0.0002,2]
[357896636,1744530643377,-5845.69889107,0.0002,2]
[357896637,1744530643388,-151.675928,0.0002,2]
[357896638,1744530643397,-885.55085314,0.0002,2]
[357896639,1744530643407,-1000.0,0.00020875,2]
[357896640,1744530643417,-157.9,0.000209,2]
[357896641,1744530643427,-196.4,0.00020963,2]
[357896642,1744530643437,-545.8684101,0.00020974,2]
[357896643,1744530643447,-165.90710488,0.00020974,2]
[357896644,1744530643457,-500.0,0.00020974,2]
[357896645,1744530643467,-500.0,0.00020974,2]
[357896646,1744530643477,-500.0,0.00020974,2]
[357896647,1744530643488,-500.0,0.00020974,2]
[357896648,1744530643498,-431.63971761,0.00020974,2]
[357896649,1744530643507,-270.18219084,0.00020974,2]
[357896650,1744530643518,-500.0,0.00020974,2]
[357896651,1744530643528,-500.0,0.00020974,2]
[357896652,1744530643537,-251.03774901,0.00020974,2]
[357896666,1744530647051,-248.96225099,0.00020974,2]
[357896667,1744530647061,-500.0,0.00020974,2]
[357896668,1744530647071,-500.0,0.00020974,2]
[357896669,1744530647080,-500.0,0.00020974,2]
[357896670,1744530647089,-500.0,0.00020974,2]
[357896671,1744530647099,-500.0,0.00020974,2]
[357896672,1744530647108,-22961.00390002,0.00020975,2]